bitfinex/quotes_SOLUSD_20260226
["timestamp","ask_amount","ask_price","bid_price","bid_amount"]
[1772136612368,4.23997004,86.724,86.692,4.21927645]
[1772136613667,4.23997004,86.724,86.701,4.21927645]
[1772136615972,4.23997004,86.722,86.696,4.21927645]
[1772136616264,4.23997004,86.722,86.68,0.2]
[1772136616265,4.23997004,86.722,86.68,3.47169347]
[1772136616468,4.23997004,86.719,86.68,7.69096992]
[1772136616664,4.23997004,86.715,86.68,0.2]
[1772136618565,4.23997004,86.713,86.68,0.2]
[1772136619172,4.23997004,86.713,86.681,4.21927645]
[1772136620072,4.23997004,86.713,86.68,0.2]
[1772136621468,40.36350216,86.712,86.68,0.2]
[1772136621682,4.23997004,86.711,86.68,0.2]
[1772136622675,4.23997004,86.709,86.68,0.2]
[1772136623584,4.23997004,86.707,86.68,0.2]
[1772136628284,40.3653642,86.708,86.68,0.2]
[1772136628285,4.23997004,86.705,86.68,0.2]
[1772136628575,4.23997004,86.723,86.691,4.21927645]
[1772136628776,4.23997004,86.73,86.701,4.21927645]
[1772136628973,4.23997004,86.73,86.71,7.49096992]
[1772136629862,11.52883939,86.739,86.711,4.21927645]
[1772136630174,4.23997004,86.738,86.72,7.49096992]
[1772136630491,4.23997004,86.736,86.714,4.21927645]
[1772136632983,4.23997004,86.736,86.716,4.21927645]
[1772136633371,4.23997004,86.766,86.731,4.21927645]
[1772136633675,4.23997004,86.766,86.741,4.21927645]
[1772136633878,28.80874568,86.78,86.751,4.21927645]
[1772136633879,15.76429868,86.773,86.751,4.21927645]
[1772136634064,4.23997004,86.785,86.76,7.49096992]
[1772136634261,4.23997004,86.785,86.723,3.69383402]
[1772136634262,11.52300127,86.783,86.77,3.27169347]
[1772136634889,4.23997004,86.789,86.751,11.5271863]
[1772136635190,4.23997004,86.789,86.76,3.27169347]
[1772136636488,4.23997004,86.789,86.75,3.27169347]
[1772136636881,4.5,86.787,86.75,3.27169347]
[1772136637284,4.5,86.787,86.76,3.27169347]
[1772136639189,11.52259581,86.786,86.76,3.27169347]
[1772136639374,4.5,86.785,86.76,3.27169347]
[1772136640195,4.5,86.785,86.75,3.27169347]
[1772136640383,4.5,86.785,86.724,2.9]
[1772136640585,4.5,86.785,86.74,3.27169347]
[1772136640776,4.5,86.779,86.74,3.27169347]
[1772136641374,4.5,86.777,86.74,3.27169347]
[1772136641576,16.02310023,86.783,86.76,3.27169347]
[1772136641781,4.5,86.782,86.76,3.27169347]
[1772136641985,4.5,86.782,86.75,3.27169347]
[1772136642292,4.5,86.782,86.727,2.9]
[1772136642597,4.5,86.779,86.74,3.27169347]
[1772136643001,11.52310023,86.783,86.76,3.27169347]
[1772136643385,11.52310023,86.783,86.76,3.26707113]
[1772136644084,4.5,86.782,86.76,3.26707113]
[1772136645511,4.5,86.78,86.76,3.26707113]
[1772136647495,4.5,86.778,86.76,3.26707113]
[1772136648388,4.5,86.809,86.77,3.26707113]
[1772136648594,4.5,86.809,86.78,3.26707113]
[1772136649204,4.5,86.805,86.77,3.26707113]
[1772136649390,4.78432314,86.799,86.75,3.26707113]
[1772136649709,4.78432314,86.797,86.76,3.26707113]
[1772136650505,4.78432314,86.797,86.75,3.26707113]
[1772136652209,4.5,86.795,86.76,3.26707113]
[1772136652791,4.5,86.795,86.75,3.26707113]
[1772136652992,4.5,86.789,86.75,3.26707113]
[1772136654615,4.5,86.787,86.751,11.52724464]
[1772136655314,4.78432314,86.779,86.709,3.69383402]
[1772136655514,4.78432314,86.779,86.74,3.26707113]
[1772136656519,4.78432314,86.777,86.74,3.26707113]
[1772136656819,4.78432314,86.777,86.74,3.15811172]
[1772136660320,4.5,86.775,86.74,3.15811172]
[1772136661627,4.5,86.773,86.741,11.52857356]
[1772136665625,11.52445489,86.772,86.741,11.52857356]
[1772136665924,4.5,86.771,86.741,11.52857356]
[1772136666134,4.5,86.777,86.75,3.26707113]
[1772136667531,4.5,86.777,86.751,11.52724464]
[1772136668524,4.5,86.776,86.751,11.52724464]
[1772136669428,4.5,86.776,86.721,2.9]
[1772136669429,4.5,86.776,86.74,3.26707113]
[1772136670532,40.33419762,86.775,86.731,11.5299028]
[1772136670734,4.5,86.769,86.72,3.26707113]
[1772136671435,40.33419762,86.775,86.71,3.26707113]
[1772136671436,4.5,86.749,86.71,3.26707113]
[1772136671614,4.5,86.739,86.701,11.53389234]
[1772136673039,4.5,86.737,86.701,11.53389234]
[1772136673438,4.5,86.737,86.71,3.26707113]
[1772136675143,16.02923814,86.736,86.71,3.26707113]
[1772136675647,4.5,86.735,86.71,3.26707113]
[1772136676150,4.5,86.735,86.711,11.53256218]
[1772136677044,4.5,86.735,86.71,3.26707113]
[1772136677253,4.5,86.735,86.711,11.53256218]
[1772136678635,11.529504,86.734,86.711,11.53256218]
[1772136680253,4.5,86.734,86.71,3.26707113]
[1772136680668,4.5,86.734,86.702,11.53363444]
[1772136681865,11.52963693,86.733,86.71,3.26707113]
[1772136682650,16.02963693,86.733,86.71,3.26707113]
[1772136682854,4.5,86.74,86.71,3.26707113]
[1772136684165,4.5,86.738,86.711,11.53256218]
[1772136684355,4.5,86.738,86.71,3.26707113]
[1772136684559,4.5,86.738,86.703,11.53357391]
[1772136685257,4.5,86.738,86.7,3.26707113]
[1772136685455,4.5,86.738,86.697,11.5343753]
[1772136685647,4.5,86.738,86.7,3.26707113]
[1772136686159,4.5,86.738,86.697,11.5343753]
[1772136686346,4.5,86.736,86.7,3.26707113]
[1772136688063,4.5,86.736,86.71,3.26707113]
[1772136689464,11.52937107,86.735,86.71,3.26707113]
[1772136689666,4.5,86.734,86.71,3.26707113]
[1772136690159,4.5,86.75,86.72,3.26707113]
[1772136690364,4.5,86.75,86.711,11.53256218]
[1772136691470,4.5,86.745,86.711,11.53256218]
[1772136692477,4.5,86.745,86.71,3.26707113]
[1772136692964,4.5,86.745,86.71,14.79973467]
[1772136693466,4.5,86.745,86.702,2.9]
[1772136693663,4.5,86.743,86.702,2.9]
[1772136693968,4.5,86.743,86.71,3.26707113]
[1772136695552,4.5,86.741,86.71,3.26707113]
[1772136695869,4.5,86.739,86.702,2.9]
[1772136696971,4.5,86.739,86.703,11.53362628]
[1772136698772,4.5,86.737,86.703,11.53362628]
[1772136704371,40.35140306,86.738,86.703,11.53362628]
[1772136704372,11.52923814,86.736,86.703,11.53362628]
[1772136704579,4.5,86.735,86.703,11.53362628]
[1772136706477,4.5,86.733,86.701,11.53389234]
[1772136707971,4.5,86.743,86.71,3.27201043]
[1772136708660,4.5,86.741,86.71,3.27201043]
[1772136709272,4.5,86.741,86.711,11.53256218]
[1772136710182,57.62012287,86.776,86.72,3.27201043]
[1772136710183,4.5,86.747,86.72,3.27201043]
[1772136710685,4.5,86.747,86.721,11.53123234]
[1772136711967,4.5,86.745,86.72,3.27201043]
[1772136713183,4.5,86.743,86.713,11.53226001]
[1772136713383,4.5,86.743,86.7,3.27201043]
[1772136713881,4.5,86.739,86.7,3.27201043]
[1772136714270,4.5,86.729,86.69,3.27201043]
[1772136714587,4.5,86.729,86.7,3.27201043]
[1772136716386,4.5,86.727,86.692,11.53496129]
[1772136717491,4.5,86.725,86.692,11.53496129]
[1772136718389,4.5,86.725,86.69,3.27201043]
[1772136718575,4.5,86.725,86.691,11.5352228]
[1772136720094,4.5,86.723,86.7,3.27201043]
[1772136722297,4.5,86.723,86.684,28.84038576]
[1772136722298,4.5,86.721,86.69,3.27201043]
[1772136724692,4.5,86.721,86.682,11.53642047]
[1772136724693,4.5,86.719,86.682,11.53642047]
[1772136724889,4.5,86.719,86.68,3.47201043]
[1772136725095,4.5,86.719,86.681,11.53655356]
[1772136725994,4.5,86.719,86.68,3.47201043]
[1772136727580,4.5,86.717,86.68,3.47201043]
[1772136728486,4.5,86.717,86.681,11.53655356]
[1772136729902,4.5,86.715,86.68,3.47201043]
[1772136730103,4.5,86.715,86.68,15.00866354]
[1772136730300,4.5,86.709,86.68,0.2]
[1772136730488,4.5,86.699,86.67,0.2]
[1772136730985,4.5,86.699,86.67,3.47201043]
[1772136732006,4.5,86.697,86.671,11.53788464]
[1772136733416,4.5,86.697,86.67,3.47201043]
[1772136734507,4.5,86.695,86.67,0.2]
[1772136734905,4.5,86.695,86.67,3.47201043]
[1772136737205,4.5,86.705,86.671,11.53788464]
[1772136737414,4.5,86.705,86.68,3.27201043]
[1772136738213,4.5,86.705,86.671,11.53788464]
[1772136739516,28.83050578,86.714,86.671,11.53788464]
[1772136739517,4.5,86.703,86.671,11.53788464]
[1772136743213,4.5,86.701,86.67,3.47201043]
[1772136745612,4.5,86.699,86.67,3.47201043]
[1772136746210,4.5,86.699,86.67,0.2]
[1772136747216,4.5,86.697,86.67,1e-08]
[1772136747522,4.5,86.689,86.66,0.2]
[1772136751020,4.5,86.687,86.66,3.47201043]
[1772136751602,4.5,86.687,86.66,0.2]
[1772136751904,4.5,86.687,86.66,11.73931111]
[1772136752217,4.5,86.703,86.68,3.27201043]
[1772136752596,4.5,86.703,86.67,3.27201043]
[1772136753218,4.5,86.699,86.67,3.27201043]
[1772136753404,4.5,86.699,86.671,11.53788464]
[1772136755315,28.83405301,86.704,86.671,11.53788464]
[1772136755316,4.5,86.697,86.671,11.53788464]
[1772136755702,11.53382725,86.702,86.68,3.27201043]
[1772136755908,4.5,86.728,86.69,3.27201043]
[1772136757623,4.5,86.726,86.69,14.80727981]
[1772136757924,4.5,86.726,86.7,3.27201043]
[1772136758218,4.5,86.726,86.69,14.80727981]
[1772136760007,4.5,86.724,86.69,14.80727981]
[1772136762310,11.53096641,86.723,86.69,14.80727981]
[1772136762623,4.5,86.722,86.69,14.80727981]
[1772136764118,4.5,86.719,86.68,3.27201043]
[1772136765328,4.5,86.717,86.68,3.27330067]
[1772136768428,4.5,86.709,86.67,3.27330067]
[1772136769412,4.5,86.709,86.671,11.53788464]
[1772136769609,4.5,86.709,86.68,3.27330067]
[1772136770127,4.5,86.714,86.68,3.27330067]
[1772136770329,46.10071412,86.767,86.68,3.27330067]
[1772136770330,4.5,86.725,86.7,3.27330067]
[1772136770633,4.5,86.737,86.71,3.27330067]
[1772136771433,11.52923814,86.736,86.71,3.27330067]
[1772136771630,16.02923814,86.736,86.71,3.27330067]
[1772136771827,11.52923814,86.736,86.71,3.27330067]
[1772136772046,4.5,86.741,86.72,3.27330067]
[1772136772219,4.5,86.748,86.72,3.27330067]
[1772136774637,4.5,86.746,86.72,3.27330067]
[1772136775828,4.5,86.746,86.73,3.27330067]
[1772136776040,28.81453079,86.762,86.73,3.27330067]
[1772136776041,4.5,86.753,86.73,3.27330067]
[1772136776344,4.5,86.757,86.73,3.27330067]
[1772136776837,4.5,86.755,86.73,3.27330067]
[1772136778641,4.5,86.755,86.731,11.5299028]
[1772136779022,4.5,86.755,86.74,3.27330067]
[1772136780656,4.5,86.753,86.73,3.27330067]
[1772136781043,4.5,86.758,86.731,11.5299028]
[1772136781223,4.5,86.758,86.74,3.27330067]
[1772136781542,4.5,86.756,86.74,3.27330067]
[1772136781931,4.5,86.77,86.75,3.27330067]
[1772136782440,4.5,86.77,86.731,40.3546598]
[1772136782441,11.52272858,86.785,86.76,3.27330067]
[1772136782646,16.02272858,86.785,86.76,3.27330067]
[1772136782945,4.5,86.784,86.76,3.27330067]
[1772136783242,4.5,86.782,86.76,3.27330067]
[1772136785545,4.5,86.788,86.76,3.27330067]
[1772136785725,4.5,86.788,86.724,2.9]
[1772136785726,4.5,86.788,86.77,3.27330067]
[1772136785926,0.1,86.79,86.77,3.27330067]
[1772136786445,4.5,86.789,86.77,3.27330067]
[1772136787643,11.52233027,86.788,86.76,3.27330067]
[1772136787848,4.5,86.787,86.76,3.27330067]
[1772136790248,4.5,86.785,86.737,11.52910522]
[1772136790449,4.5,86.779,86.74,3.27330067]
[1772136790744,11.52259581,86.786,86.727,11.53039629]
[1772136790745,4.5,86.769,86.727,11.53039629]
[1772136790952,4.5,86.759,86.722,11.53100397]
[1772136791330,4.5,86.749,86.71,3.27330067]
[1772136791530,4.5,86.749,86.71,11.53261739]
[1772136791739,4.5,86.749,86.71,3.27330067]
[1772136792348,4.5,86.747,86.711,11.53256218]
[1772136792652,4.5,86.739,86.7,3.27330067]
[1772136794349,4.5,86.737,86.701,11.53389234]
[1772136795555,4.5,86.737,86.71,3.27330067]
[1772136797450,4.5,86.735,86.711,11.53256218]
[1772136798249,11.52777617,86.747,86.721,3.27330067]
[1772136798452,11.52658029,86.756,86.721,3.27330067]
[1772136799752,11.52658029,86.756,86.721,14.80445304]
[1772136800346,4.27502153,86.755,86.721,14.80445304]
[1772136800859,4.27502153,86.753,86.724,3.27330067]
[1772136802358,11.52634024,86.758,86.731,3.27330067]
[1772136802534,15.80136177,86.758,86.731,3.27330067]
[1772136805740,15.80136177,86.758,86.74,3.27330067]
[1772136806141,4.27502153,86.757,86.731,3.27330067]
[1772136806356,4.27502153,86.757,86.721,3.27330067]
[1772136806563,4.27502153,86.757,86.73,3.27330067]
[1772136807062,4.27502153,86.757,86.72,3.27330067]
[1772136807244,40.34212668,86.758,86.71,3.27330067]
[1772136807245,4.27502153,86.749,86.71,3.27330067]
[1772136808160,4.27502153,86.747,86.71,14.80586521]
[1772136811667,4.27502153,86.745,86.711,3.27330067]
[1772136815875,4.36075022,86.743,86.711,3.27330067]
[1772136818271,4.36075022,86.741,86.711,3.27330067]
[1772136819669,4.36075022,86.741,86.712,11.53242919]
[1772136819874,4.36075022,86.741,86.712,14.80572986]
[1772136821879,0.14216157,86.776,86.731,3.27330067]
[1772136822183,0.14216157,86.768,86.731,3.27330067]
[1772136822377,4.41511198,86.763,86.731,3.27330067]
[1772136823376,4.41511198,86.763,86.74,6.54660134]
[1772136824381,4.41511198,86.761,86.74,3.27330067]
[1772136824684,4.41511198,86.761,86.735,3.27330067]
[1772136825468,4.41511198,86.759,86.735,3.27330067]
[1772136827369,11.52631457,86.758,86.735,3.27330067]
[1772136827683,4.41511198,86.757,86.735,3.27330067]
[1772136828382,4.41511198,86.757,86.73,3.26935515]
[1772136828889,4.41511198,86.757,86.72,3.26935515]
[1772136829074,4.41511198,86.749,86.716,3.27330067]
[1772136829481,4.41511198,86.747,86.717,11.53176424]
[1772136833404,4.41511198,86.745,86.716,3.27330067]
[1772136836806,4.41511198,86.745,86.721,3.27330067]
[1772136837104,4.41511198,86.764,86.731,3.27330067]
[1772136839183,4.41511198,86.762,86.731,3.27330067]
[1772136840004,4.41511198,86.762,86.725,3.27330067]
[1772136840207,4.41511198,86.759,86.72,3.26935515]
[1772136840503,4.41511198,86.759,86.722,3.27330067]
[1772136841406,3.55367829,86.77,86.71,3.26935515]
[1772136841407,4.41511198,86.749,86.71,3.26935515]
[1772136841705,4.41511198,86.749,86.711,3.27330067]
[1772136842596,4.41511198,86.747,86.712,3.27330067]
[1772136844609,4.41511198,86.747,86.721,3.27330067]
[1772136844803,11.52790906,86.746,86.721,3.27330067]
[1772136845916,15.94302104,86.746,86.721,3.27330067]
[1772136846802,4.41511198,86.745,86.722,14.80440004]
[1772136847100,4.41511198,86.745,86.722,3.27330067]
[1772136847292,4.41511198,86.745,86.704,28.83350301]
[1772136847293,4.41511198,86.745,86.711,3.27330067]
[1772136847610,4.41511198,86.745,86.712,11.53242919]
[1772136847803,4.41511198,86.745,86.712,14.80572986]
[1772136848005,4.41511198,86.745,86.713,3.27330067]
[1772136849618,4.35396347,86.741,86.695,3.27330067]
[1772136849809,4.35396347,86.739,86.701,3.27330067]
[1772136850713,4.35396347,86.739,86.711,3.27330067]
[1772136851219,4.35396347,86.752,86.721,3.27330067]
[1772136851716,4.35396347,86.75,86.721,3.27330067]
[1772136853418,4.35396347,86.75,86.72,3.26935515]
[1772136854805,4.35396347,86.748,86.719,3.27330067]
[1772136856020,4.35396347,86.748,86.71,3.26935515]
[1772136856324,4.35396347,86.748,86.711,3.27330067]
[1772136857512,4.35396347,86.746,86.712,3.27330067]
[1772136860412,3.26935515,86.76,86.7,2.9]
[1772136860413,15.88078911,86.755,86.731,3.27330067]
[1772136860610,4.35396347,86.754,86.731,3.27330067]
[1772136862513,11.52697889,86.753,86.731,3.27330067]
[1772136862718,4.35396347,86.759,86.74,6.54265582]
[1772136862918,4.35396347,86.759,86.74,3.27330067]
[1772136863310,11.5252186,86.767,86.741,3.27330067]
[1772136863811,4.35396347,86.766,86.741,3.27330067]
[1772136864007,4.35396347,86.766,86.74,3.26935515]
[1772136864213,4.35396347,86.766,86.731,3.27330067]
[1772136864627,11.52538465,86.765,86.731,3.27330067]
[1772136864834,4.35396347,86.764,86.731,3.27330067]
[1772136865035,4.35396347,86.764,86.733,3.27330067]
[1772136867034,4.35396347,86.762,86.733,3.27330067]
[1772136867234,4.35396347,86.762,86.72,3.26935515]
[1772136867542,4.35396347,86.749,86.712,3.27330067]
[1772136870141,4.35396347,86.747,86.714,3.27330067]
[1772136871042,4.35396347,86.747,86.713,11.53229619]
[1772136871043,15.88116147,86.752,86.73,3.26935515]
[1772136871223,4.35396347,86.751,86.731,3.27330067]
[1772136872451,4.5,86.749,86.71,3.26935515]
[1772136873123,4.5,86.749,86.7,3.26935515]
[1772136873326,4.5,86.749,86.701,2.9]
[1772136873542,4.5,86.747,86.701,2.9]
[1772136873740,4.5,86.747,86.71,3.26935515]
[1772136876246,4.5,86.745,86.71,3.26935515]
[1772136880445,4.5,86.743,86.711,11.53256218]
[1772136883062,4.5,86.741,86.711,11.53256218]
[1772136884855,4.5,86.737,86.67,2.9]
[1772136885038,4.5,86.729,86.691,11.5352228]
[1772136885351,4.5,86.729,86.69,3.26935515]
[1772136886454,4.5,86.729,86.69,14.80469232]
[1772136887262,4.5,86.727,86.69,3.27227167]
[1772136887554,4.5,86.727,86.7,3.27227167]
[1772136888838,4.5,86.727,86.69,3.27227167]
[1772136889441,57.63883692,86.748,86.69,3.27227167]
[1772136889442,4.5,86.725,86.69,3.27227167]
[1772136890140,4.5,86.719,86.68,3.27227167]
[1772136890341,4.5,86.711,86.67,3.27227167]
[1772136890538,4.5,86.709,86.67,3.27227167]
[1772136891454,4.5,86.707,86.67,3.27227167]
[1772136891853,4.5,86.707,86.66,29.04816189]
[1772136891854,3.27227167,86.69,86.66,0.2]
[1772136892060,4.5,86.689,86.66,0.2]
[1772136893153,4.5,86.689,86.66,3.47227167]
[1772136893354,4.5,86.689,86.67,3.27227167]
[1772136893562,4.5,86.687,86.66,0.2]
[1772136896764,4.43824921,86.669,86.65,0.2]
[1772136897062,4.43824921,86.669,86.63,11.74324651]
[1772136897465,4.43824921,86.669,86.63,0.2]
[1772136898460,3.27227167,86.66,86.63,0.2]
[1772136898662,4.43824921,86.657,86.63,0.2]
[1772136899962,4.43824921,86.655,86.621,0.2]
[1772136900153,40.53174797,86.656,86.622,0.2]
[1772136900154,4.43824921,86.649,86.622,0.2]
[1772136900449,0.28432314,86.678,86.631,4.4515266]
[1772136900656,11.53681976,86.679,86.651,4.4515266]
[1772136900851,11.53681976,86.679,86.621,40.40590618]
[1772136900852,11.53681976,86.679,86.661,4.4515266]
[1772136901655,40.37886916,86.679,86.643,4.4515266]
[1772136902048,40.65853439,86.689,86.651,4.4515266]
[1772136902273,4.43824921,86.682,86.651,4.4515266]
[1772136904261,11.53655356,86.681,86.651,4.4515266]
[1772136904470,4.43824921,86.68,86.651,4.4515266]
[1772136904654,4.43824921,86.68,86.652,4.4515266]
[1772136906073,4.43824921,86.678,86.652,4.4515266]
[1772136906658,4.43824921,86.676,86.634,4.4515266]
[1772136906858,4.43824921,86.702,86.671,4.4515266]
[1772136907184,4.43824921,86.708,86.68,3.27227167]
[1772136907660,4.43824921,86.708,86.67,3.27227167]
[1772136908968,40.36356954,86.712,86.642,3.69383402]
[1772136908969,11.53309421,86.707,86.681,4.4515266]
[1772136909274,4.43824921,86.706,86.681,4.4515266]
[1772136910166,4.06250326,86.704,86.681,4.4515266]
[1772136912175,11.53362628,86.703,86.681,4.4515266]
[1772136913692,4.06250326,86.722,86.681,4.4515266]
[1772136913974,4.06250326,86.722,86.68,3.27227167]
[1772136913975,4.06250326,86.736,86.711,4.26327202]
[1772136914271,4.06250326,86.752,86.73,7.53554369]
[1772136914473,15.58895069,86.757,86.731,4.26327202]
[1772136915576,4.06250326,86.776,86.741,4.26327202]
[1772136915960,4.06250326,86.772,86.741,4.26327202]
[1772136916377,4.06250326,86.77,86.741,4.26327202]
[1772136917582,11.52485334,86.769,86.743,4.26327202]
[1772136918158,11.52485334,86.769,86.742,11.52844066]
[1772136918159,15.58661364,86.775,86.75,7.53554369]
[1772136918363,4.06250326,86.78,86.751,4.26327202]
[1772136918763,4.06250326,86.78,86.75,3.27227167]
[1772136918960,4.06250326,86.78,86.742,11.52844066]
[1772136918961,4.06250326,86.779,86.74,3.27227167]
[1772136919365,4.06250326,86.779,86.74,7.53554369]
[1772136919561,4.06250326,86.777,86.741,15.79184558]
[1772136919786,4.06250326,86.777,86.741,11.52857356]
[1772136920383,11.52365807,86.778,86.751,4.26327202]
[1772136920590,4.3468264,86.782,86.751,4.26327202]
[1772136922286,40.33140893,86.781,86.751,4.26327202]
[1772136922589,4.06250326,86.779,86.743,4.26327202]
[1772136924791,4.06250326,86.773,86.74,3.27227167]
[1772136925091,4.06250326,86.769,86.737,15.79226903]
[1772136925987,4.06250326,86.769,86.737,4.26327202]
[1772136927391,4.06250326,86.767,86.733,11.52962695]
[1772136927593,4.06250326,86.767,86.733,15.79289897]
[1772136927793,11.52498617,86.768,86.726,4.26327202]
[1772136927794,4.06250326,86.765,86.726,4.26327202]
[1772136928092,4.06250326,86.771,86.75,3.27227167]
[1772136928476,4.06250326,86.771,86.741,4.26327202]
[1772136929486,4.06250326,86.769,86.75,3.27227167]
[1772136930194,4.06250326,86.769,86.743,4.26327202]
[1772136931387,11.52498617,86.768,86.743,4.26327202]
[1772136932390,4.06250326,86.768,86.743,4.26327202]
[1772136933997,4.06250326,86.768,86.74,3.27227167]
[1772136934291,4.06250326,86.768,86.73,28.82480915]
[1772136934292,4.06250326,86.762,86.72,14.8036103]
[1772136934590,4.06250326,86.76,86.72,14.8036103]
[1772136934794,4.06250326,86.76,86.721,4.26327202]
[1772136935174,4.06250326,86.76,86.73,3.27227167]
[1772136935805,4.06250326,86.758,86.722,11.53109937]
[1772136936095,4.06250326,86.758,86.722,15.79437139]
[1772136936291,4.06250326,86.758,86.722,4.26327202]
[1772136936592,4.43044881,86.752,86.71,3.27227167]
[1772136936793,0.28432314,86.753,86.71,14.80496686]
[1772136936794,4.43044881,86.749,86.71,14.80496686]
[1772136937094,0.28432314,86.753,86.7,3.27227167]
[1772136937095,4.43044881,86.739,86.7,3.27227167]
[1772136937289,4.43044881,86.739,86.701,11.53389234]
[1772136937496,4.43044881,86.739,86.71,3.27227167]
[1772136937691,4.43044881,86.752,86.721,4.29611846]
[1772136937898,4.43044881,86.752,86.73,14.80229442]
[1772136938695,11.52724464,86.751,86.73,3.27227167]
[1772136938892,4.43044881,86.75,86.73,3.27227167]
[1772136940302,4.43044881,86.75,86.731,11.5299028]
[1772136941592,57.61860166,86.778,86.731,11.5299028]
[1772136941593,163.3,86.841,86.732,4.21252161]
[1772136941784,163.3,86.841,86.741,4.21252161]
[1772136941785,4.26661547,86.765,86.741,4.21252161]
[1772136941984,4.26661547,86.765,86.75,3.27227167]
[1772136942392,4.26661547,86.763,86.73,3.27227167]
[1772136943507,4.26661547,86.763,86.731,4.21252161]
[1772136943709,4.26661547,86.763,86.74,3.27227167]
[1772136946314,4.26661547,86.761,86.73,3.27227167]
[1772136946491,4.26661547,86.759,86.721,4.21252161]
[1772136947500,11.52631457,86.758,86.721,15.74368962]
[1772136947703,4.26661547,86.757,86.721,15.74368962]
[1772136949604,4.26661547,86.755,86.721,15.74368962]
[1772136949795,4.26661547,86.755,86.721,11.53116801]
[1772136950616,4.26661547,86.755,86.721,15.74368962]
[1772136950814,4.26661547,86.753,86.722,4.21252161]
[1772136951513,4.26661547,86.753,86.73,3.27008416]
[1772136952010,4.26661547,86.749,86.721,4.21252161]
[1772136952215,4.26661547,86.765,86.731,4.21252161]
[1772136952400,4.26661547,86.763,86.731,4.21252161]
[1772136952997,4.26661547,86.761,86.74,3.27008416]
[1772136954213,4.26661547,86.77,86.75,3.27008416]
[1772136954417,4.26661547,86.77,86.75,7.48260577]
[1772136954803,4.26661547,86.77,86.75,3.27008416]
[1772136955300,4.26661547,86.769,86.75,3.27008416]
[1772136955733,4.26661547,86.769,86.744,4.21252161]
[1772136956925,11.52481678,86.77,86.74,3.27008416]
[1772136956926,4.26661547,86.767,86.74,3.27008416]
[1772136958902,11.52525182,86.766,86.74,3.27008416]
[1772136959106,4.26661547,86.765,86.74,3.27008416]
[1772136960120,4.26661547,86.765,86.741,4.21252161]
[1772136960428,4.26661547,86.778,86.751,4.21252161]
[1772136961819,4.26661547,86.776,86.741,4.21252161]
[1772136965027,4.26661547,86.774,86.743,4.21252161]
[1772136965527,4.26661547,86.774,86.751,4.21252161]
[1772136966328,11.52259581,86.786,86.76,3.27008416]
[1772136966531,4.26661547,86.808,86.772,4.21252161]
[1772136966709,4.26661547,86.808,86.781,4.21252161]
[1772136967228,4.26661547,86.806,86.781,4.21252161]
[1772136968125,4.26661547,86.806,86.771,4.21252161]
[1772136968727,4.26661547,86.806,86.772,4.21252161]
[1772136968928,4.26661547,86.806,86.773,4.21252161]
[1772136969231,4.26661547,86.804,86.774,11.52418927]
[1772136969530,4.26661547,86.804,86.773,4.21252161]
[1772136970235,3.37008416,86.81,86.781,4.30542712]
[1772136970236,0.1,86.81,86.781,4.30542712]
[1772136970443,0.1,86.81,86.791,4.30542712]
[1772136971232,0.1,86.83,86.802,4.30542712]
[1772136971630,4.13980893,86.827,86.802,4.30542712]
[1772136972739,4.13980893,86.827,86.804,4.30542712]
[1772136973232,11.61555865,86.84,86.811,4.30542712]
[1772136974007,0.1,86.84,86.811,4.30542712]
[1772136974209,0.1,86.84,86.821,4.30542712]
[1772136975020,11.51401795,86.851,86.822,4.30542712]
[1772136975431,4.13980893,86.849,86.81,3.27008416]
[1772136975732,4.13980893,86.829,86.798,4.30542712]
[1772136975914,4.13980893,86.844,86.811,4.30542712]
[1772136976119,0.1,86.85,86.821,4.30542712]
[1772136976520,4.23980893,86.85,86.821,4.30542712]
[1772136977233,11.51423735,86.849,86.822,4.30542712]
[1772136977422,0.1,86.85,86.831,4.30542712]
[1772136978332,0.1,86.85,86.823,4.30542712]
[1772136978815,0.1,86.85,86.83,3.27008416]
[1772136979013,0.1,86.85,86.823,4.30542712]
[1772136979429,4.23980893,86.85,86.823,4.30542712]
[1772136980341,4.23980893,86.85,86.823,15.82301012]
[1772136980524,4.23980893,86.85,86.824,4.30542712]
[1772136981129,4.13980893,86.842,86.81,4.30542712]
[1772136981335,4.13980893,86.839,86.811,11.51927751]
[1772136981941,4.13980893,86.837,86.81,4.30542712]
[1772136982938,4.13980893,86.837,86.801,4.30542712]